[Event "*** SCC Grand Prix: Titled Tuesday Blitz"]
[Site "Chess.com"]
[Date "2020.10.13"]
[Round "6"]
[White "teacher4chess"]
[Black "Vamostodorecto"]
[Result "0-1"]
[WhiteElo "2030"]
[BlackElo "2370"]
[TimeControl "180+1"]
[EndTime "11:05:16 PDT"]
[Termination "Vamostodorecto won by resignation"]

1. d4 {[%clk 0:02:59.3]} 1... Nf6 {[%clk 0:02:59.1]} 2. c4 {[%clk 0:02:59.3]}
2... g6 {[%clk 0:02:59.5]} 3. Nc3 {[%clk 0:02:55.3]} 3... d5 {[%clk 0:03:00]} 4.
cxd5 {[%clk 0:02:55.4]} 4... Nxd5 {[%clk 0:03:00.9]} 5. e4 {[%clk 0:02:55.3]}
5... Nxc3 {[%clk 0:03:01.5]} 6. bxc3 {[%clk 0:02:55.6]} 6... Bg7 {[%clk
0:03:02.4]} 7. Nf3 {[%clk 0:02:55.5]} 7... c5 {[%clk 0:03:02.8]} 8. Be2 {[%clk
0:02:55.5]} 8... O-O {[%clk 0:03:02.5]} 9. O-O {[%clk 0:02:55.5]} 9... Nc6
{[%clk 0:03:03.2]} 10. Be3 {[%clk 0:02:53.5]} 10... b6 {[%clk 0:03:01.9]} 11. d5
{[%clk 0:02:49.7]} 11... Ne5 {[%clk 0:02:58.5]} 12. Rc1 {[%clk 0:02:43.8]} 12...
e6 {[%clk 0:02:56.6]} 13. c4 {[%clk 0:02:29.3]} 13... exd5 {[%clk 0:02:44.8]}
14. exd5 {[%clk 0:02:25.8]} 14... Re8 {[%clk 0:02:45]} 15. Qd2 {[%clk
0:02:14.2]} 15... Bf5 {[%clk 0:02:28.7]} 16. Bg5 {[%clk 0:01:55.7]} 16... Qd7
{[%clk 0:02:20.1]} 17. Bf4 {[%clk 0:01:46.6]} 17... Nxf3+ {[%clk 0:02:13.7]} 18.
Bxf3 {[%clk 0:01:46.2]} 18... Be4 {[%clk 0:02:13.6]} 19. Bxe4 {[%clk 0:01:36.6]}
19... Rxe4 {[%clk 0:02:14.5]} 20. Rfe1 {[%clk 0:01:36.8]} 20... Rae8 {[%clk
0:02:08.3]} 21. Rxe4 {[%clk 0:01:30.9]} 21... Rxe4 {[%clk 0:02:09.2]} 22. Re1
{[%clk 0:01:30]} 22... Rxc4 {[%clk 0:02:05.5]} 23. d6 {[%clk 0:01:20.9]} 23...
Bc3 {[%clk 0:01:42.1]} 24. Qe2 {[%clk 0:01:20.6]} 24... Rxf4 {[%clk 0:01:29.5]}
25. Qe8+ {[%clk 0:01:19.7]} 25... Qxe8 {[%clk 0:01:28.5]} 26. Rxe8+ {[%clk
0:01:19.7]} 26... Kg7 {[%clk 0:01:28.1]} 27. d7 {[%clk 0:01:20]} 27... Bf6
{[%clk 0:01:26.9]} 28. d8=Q {[%clk 0:01:18.4]} 28... Bxd8 {[%clk 0:01:26.7]} 29.
Rxd8 {[%clk 0:01:19]} 29... Rd4 {[%clk 0:01:27.2]} 30. Rxd4 {[%clk 0:01:17.5]}
30... cxd4 {[%clk 0:01:28.1]} 31. Kf1 {[%clk 0:01:17.7]} 31... Kf6 {[%clk
0:01:27.1]} 32. Ke2 {[%clk 0:01:18.2]} 32... Ke5 {[%clk 0:01:27.8]} 33. Kd3
{[%clk 0:01:18.6]} 33... Kd5 {[%clk 0:01:28]} 34. g4 {[%clk 0:01:16.7]} 34... g5
{[%clk 0:01:23.1]} 35. f3 {[%clk 0:01:15.5]} 35... b5 {[%clk 0:01:21.8]} 36. a3
{[%clk 0:01:14.5]} 36... a5 {[%clk 0:01:20.8]} 37. h3 {[%clk 0:01:12.3]} 37...
h6 {[%clk 0:01:20.5]} 0-1

[Event "*** SCC Grand Prix: Titled Tuesday Blitz"]
[Site "Chess.com"]
[Date "2020.10.13"]
[Round "6"]
[White "annacramling"]
[Black "ZverevLev"]
[Result "1-0"]
[WhiteElo "2007"]
[BlackElo "2297"]
[TimeControl "180+1"]
[EndTime "11:05:17 PDT"]
[Termination "annacramling won by resignation"]

1. d4 {[%clk 0:03:00.9]} 1... d5 {[%clk 0:02:56.9]} 2. c4 {[%clk 0:03:01.1]}
2... e6 {[%clk 0:02:54.4]} 3. Nc3 {[%clk 0:03:00.4]} 3... c6 {[%clk 0:02:53.2]}
4. e3 {[%clk 0:02:58.6]} 4... Nf6 {[%clk 0:02:51.5]} 5. Nf3 {[%clk 0:02:58.9]}
5... Be7 {[%clk 0:02:50.6]} 6. Bd3 {[%clk 0:02:53.2]} 6... dxc4 {[%clk
0:02:48.9]} 7. Bxc4 {[%clk 0:02:54.1]} 7... b5 {[%clk 0:02:48.8]} 8. Bd3 {[%clk
0:02:54.5]} 8... Bb7 {[%clk 0:02:48.4]} 9. e4 {[%clk 0:02:45]} 9... a6 {[%clk
0:02:46.8]} 10. e5 {[%clk 0:02:44.1]} 10... Nd5 {[%clk 0:02:45.3]} 11. Ne4
{[%clk 0:02:31.5]} 11... h6 {[%clk 0:02:42.5]} 12. Bd2 {[%clk 0:02:15.1]} 12...
Nd7 {[%clk 0:02:39.8]} 13. O-O {[%clk 0:02:03.7]} 13... O-O {[%clk 0:02:36.6]}
14. Rc1 {[%clk 0:02:03.2]} 14... Rc8 {[%clk 0:02:33.5]} 15. Bb1 {[%clk
0:02:02.3]} 15... f5 {[%clk 0:01:58.9]} 16. exf6 {[%clk 0:01:48.5]} 16... N7xf6
{[%clk 0:01:56.7]} 17. Qc2 {[%clk 0:01:46.3]} 17... Qb6 {[%clk 0:01:22.3]} 18.
Ne5 {[%clk 0:01:10.2]} 18... Rfe8 {[%clk 0:01:12.6]} 19. Nxf6+ {[%clk
0:00:47.9]} 19... Nxf6 {[%clk 0:01:11.3]} 20. Qg6 {[%clk 0:00:45.5]} 1-0

[Event "*** SCC Grand Prix: Titled Tuesday Blitz"]
[Site "Chess.com"]
[Date "2020.10.13"]
[Round "6"]
[White "googlegoom"]
[Black "MikeSailer"]
[Result "1-0"]
[WhiteElo "2378"]
[BlackElo "2110"]
[TimeControl "180+1"]
[EndTime "11:05:18 PDT"]
[Termination "googlegoom won by resignation"]

1. Nf3 {[%clk 0:03:00.9]} 1... d5 {[%clk 0:02:59.4]} 2. b3 {[%clk 0:03:01.1]}
2... Nf6 {[%clk 0:02:59.5]} 3. Bb2 {[%clk 0:03:01.6]} 3... Bf5 {[%clk
0:02:59.8]} 4. e3 {[%clk 0:03:02.2]} 4... e6 {[%clk 0:03:00.5]} 5. Be2 {[%clk
0:03:02.8]} 5... Be7 {[%clk 0:03:01.4]} 6. O-O {[%clk 0:03:03.3]} 6... O-O
{[%clk 0:03:02]} 7. d4 {[%clk 0:03:03.9]} 7... h6 {[%clk 0:03:02.7]} 8. Nbd2
{[%clk 0:03:04.5]} 8... c5 {[%clk 0:03:03.2]} 9. c4 {[%clk 0:03:05.1]} 9... Nbd7
{[%clk 0:02:55]} 10. cxd5 {[%clk 0:03:02.6]} 10... exd5 {[%clk 0:02:52]} 11. a3
{[%clk 0:02:55.9]} 11... b6 {[%clk 0:02:34.8]} 12. Ne5 {[%clk 0:02:35.1]} 12...
Nxe5 {[%clk 0:02:31.3]} 13. dxe5 {[%clk 0:02:35.1]} 13... Ne4 {[%clk 0:02:32]}
14. f3 {[%clk 0:02:29.1]} 14... Nxd2 {[%clk 0:02:29.6]} 15. Qxd2 {[%clk
0:02:29.1]} 15... Qd7 {[%clk 0:02:22.3]} 16. Rfd1 {[%clk 0:02:27.8]} 16... Rad8
{[%clk 0:02:19.5]} 17. b4 {[%clk 0:02:16.6]} 17... d4 {[%clk 0:01:43.8]} 18.
exd4 {[%clk 0:02:11.9]} 18... cxd4 {[%clk 0:01:43.6]} 19. Qxd4 {[%clk
0:02:03.5]} 19... Qa4 {[%clk 0:01:34.1]} 20. Qe3 {[%clk 0:01:52]} 20... Qc2
{[%clk 0:01:09.9]} 21. Bd4 {[%clk 0:01:45.8]} 21... a5 {[%clk 0:00:35.4]} 22.
Rac1 {[%clk 0:01:24.1]} 22... Qa4 {[%clk 0:00:22.9]} 23. Bxb6 {[%clk 0:01:22.6]}
23... Rxd1+ {[%clk 0:00:21.7]} 24. Bxd1 {[%clk 0:01:22.8]} 24... axb4 {[%clk
0:00:22.1]} 25. Bxa4 {[%clk 0:01:22.6]} 1-0

[Event "*** SCC Grand Prix: Titled Tuesday Blitz"]
[Site "Chess.com"]
[Date "2020.10.13"]
[Round "6"]
[White "penguingm1"]
[Black "Kildepiotr"]
[Result "1-0"]
[WhiteElo "2853"]
[BlackElo "2655"]
[TimeControl "180+1"]
[EndTime "11:05:19 PDT"]
[Termination "penguingm1 won by resignation"]

1. d4 {[%clk 0:03:00.9]} 1... Nf6 {[%clk 0:02:59.1]} 2. c4 {[%clk 0:02:58.7]}
2... e6 {[%clk 0:02:58.4]} 3. Nc3 {[%clk 0:02:58.2]} 3... Bb4 {[%clk 0:02:58.4]}
4. Qc2 {[%clk 0:02:58.2]} 4... d5 {[%clk 0:02:57.5]} 5. cxd5 {[%clk 0:02:58.3]}
5... exd5 {[%clk 0:02:57.2]} 6. Bg5 {[%clk 0:02:58.2]} 6... h6 {[%clk
0:02:56.6]} 7. Bh4 {[%clk 0:02:58.3]} 7... g5 {[%clk 0:02:46.9]} 8. Bg3 {[%clk
0:02:57.9]} 8... Ne4 {[%clk 0:02:44.4]} 9. e3 {[%clk 0:02:53.4]} 9... c6 {[%clk
0:02:33]} 10. Bd3 {[%clk 0:02:43.7]} 10... Bxc3+ {[%clk 0:02:29.9]} 11. bxc3
{[%clk 0:02:43.7]} 11... Nxg3 {[%clk 0:02:30.1]} 12. hxg3 {[%clk 0:02:42.5]}
12... Be6 {[%clk 0:02:29.6]} 13. Nf3 {[%clk 0:02:34]} 13... Nd7 {[%clk
0:02:28.7]} 14. O-O {[%clk 0:02:31.6]} 14... h5 {[%clk 0:02:21.1]} 15. Rfe1
{[%clk 0:02:23.9]} 15... h4 {[%clk 0:02:16.2]} 16. e4 {[%clk 0:02:23]} 16...
hxg3 {[%clk 0:02:14.4]} 17. fxg3 {[%clk 0:02:23.9]} 17... g4 {[%clk 0:02:12.3]}
18. exd5 {[%clk 0:01:43.5]} 18... cxd5 {[%clk 0:02:09.3]} 19. Bf5 {[%clk
0:01:42.8]} 19... gxf3 {[%clk 0:01:37.6]} 20. Bxe6 {[%clk 0:01:39.4]} 20... Qg5
{[%clk 0:01:30]} 21. Bxd5+ {[%clk 0:01:20.9]} 21... Kf8 {[%clk 0:01:25.9]} 22.
Bxf3 {[%clk 0:01:17.7]} 22... Qh6 {[%clk 0:01:17.8]} 23. Qf5 {[%clk 0:01:06.9]}
23... Nf6 {[%clk 0:01:16]} 24. Qf4 {[%clk 0:01:06.8]} 24... Qg6 {[%clk
0:01:08.1]} 25. Re5 {[%clk 0:01:05.1]} 25... Rd8 {[%clk 0:01:01.7]} 26. Rae1
{[%clk 0:01:03.5]} 26... Rg8 {[%clk 0:00:54.9]} 27. Rf5 {[%clk 0:01:02.3]} 27...
Ne8 {[%clk 0:00:44]} 28. Bh5 {[%clk 0:01:01.3]} 1-0

[Event "*** SCC Grand Prix: Titled Tuesday Blitz"]
[Site "Chess.com"]
[Date "2020.10.13"]
[Round "6"]
[White "WildBizon"]
[Black "kuban1991"]
[Result "0-1"]
[WhiteElo "2630"]
[BlackElo "2819"]
[TimeControl "180+1"]
[EndTime "11:05:21 PDT"]
[Termination "kuban1991 won by resignation"]

1. e4 {[%clk 0:03:00.9]} 1... e6 {[%clk 0:03:00.1]} 2. d4 {[%clk 0:02:55.4]}
2... d5 {[%clk 0:03:01]} 3. Nc3 {[%clk 0:02:49.2]} 3... Bb4 {[%clk 0:03:00.6]}
4. exd5 {[%clk 0:02:49.5]} 4... exd5 {[%clk 0:03:01.5]} 5. Bd3 {[%clk 0:02:50]}
5... Ne7 {[%clk 0:03:01.3]} 6. Ne2 {[%clk 0:02:49.8]} 6... Nbc6 {[%clk
0:03:01.8]} 7. O-O {[%clk 0:02:48.4]} 7... Bg4 {[%clk 0:03:01.7]} 8. a3 {[%clk
0:02:46.5]} 8... Bd6 {[%clk 0:03:01.2]} 9. f3 {[%clk 0:02:39.7]} 9... Bh5 {[%clk
0:03:00.7]} 10. Be3 {[%clk 0:02:36.1]} 10... O-O {[%clk 0:02:53.2]} 11. Nf4
{[%clk 0:02:34.6]} 11... Bg6 {[%clk 0:02:47.1]} 12. Nxg6 {[%clk 0:02:34.4]}
12... hxg6 {[%clk 0:02:46.9]} 13. Bf2 {[%clk 0:02:34.6]} 13... Nf5 {[%clk
0:02:41.9]} 14. Bxf5 {[%clk 0:02:12.6]} 14... gxf5 {[%clk 0:02:41.6]} 15. Nxd5
{[%clk 0:02:13.2]} 15... Bxh2+ {[%clk 0:02:39.9]} 16. Kxh2 {[%clk 0:02:14.1]}
16... Qxd5 {[%clk 0:02:40.3]} 17. Re1 {[%clk 0:02:11.1]} 17... Rfe8 {[%clk
0:02:34.8]} 18. Qd2 {[%clk 0:02:11.1]} 18... Qd6+ {[%clk 0:02:22.2]} 19. Kg1
{[%clk 0:02:08.1]} 19... Rad8 {[%clk 0:02:12.7]} 20. Rad1 {[%clk 0:01:59.9]}
20... Rxe1+ {[%clk 0:02:06.8]} 21. Qxe1 {[%clk 0:01:59.5]} 21... a6 {[%clk
0:01:46.9]} 22. d5 {[%clk 0:01:57.7]} 22... Ne7 {[%clk 0:01:29.3]} 23. c4 {[%clk
0:01:56.7]} 23... Ng6 {[%clk 0:01:12.4]} 24. c5 {[%clk 0:01:54.8]} 24... Qf4
{[%clk 0:01:11.7]} 25. Bg3 {[%clk 0:01:44.1]} 25... Qc4 {[%clk 0:01:07.4]} 26.
Bxc7 {[%clk 0:01:37.9]} 26... Qxc5+ {[%clk 0:01:07.5]} 27. Qf2 {[%clk
0:01:31.5]} 27... Qxc7 {[%clk 0:01:07.4]} 28. Qd4 {[%clk 0:01:31.8]} 28... Qd6
{[%clk 0:01:05.7]} 29. Re1 {[%clk 0:01:26.2]} 29... Nf4 {[%clk 0:01:00]} 30. Re5
{[%clk 0:01:24.8]} 30... Nxd5 {[%clk 0:00:50.3]} 31. Kf1 {[%clk 0:01:24.2]}
31... f4 {[%clk 0:00:47.1]} 32. b4 {[%clk 0:01:18.9]} 32... Ne3+ {[%clk
0:00:44.4]} 0-1

[Event "*** SCC Grand Prix: Titled Tuesday Blitz"]
[Site "Chess.com"]
[Date "2020.10.13"]
[Round "6"]
[White "maxip32"]
[Black "anon569"]
[Result "1-0"]
[WhiteElo "2423"]
[BlackElo "2265"]
[TimeControl "180+1"]
[EndTime "11:05:22 PDT"]
[Termination "maxip32 won by resignation"]

1. e4 {[%clk 0:03:00.9]} 1... c5 {[%clk 0:02:57.4]} 2. Nf3 {[%clk 0:02:59.9]}
2... d6 {[%clk 0:02:56.6]} 3. d4 {[%clk 0:03:00]} 3... cxd4 {[%clk 0:02:55.9]}
4. Nxd4 {[%clk 0:03:00.9]} 4... Nf6 {[%clk 0:02:55]} 5. Nc3 {[%clk 0:03:01.5]}
5... a6 {[%clk 0:02:54.6]} 6. Be2 {[%clk 0:03:01.7]} 6... e6 {[%clk 0:02:53.6]}
7. O-O {[%clk 0:03:00.5]} 7... Qc7 {[%clk 0:02:53]} 8. a4 {[%clk 0:03:00]} 8...
b6 {[%clk 0:02:51.9]} 9. Bf3 {[%clk 0:02:58.8]} 9... Bb7 {[%clk 0:02:50.5]} 10.
g3 {[%clk 0:02:58.5]} 10... Nbd7 {[%clk 0:02:49.8]} 11. Bg2 {[%clk 0:02:59.1]}
11... Be7 {[%clk 0:02:49.2]} 12. Re1 {[%clk 0:02:56.9]} 12... O-O {[%clk
0:02:48]} 13. g4 {[%clk 0:02:54.3]} 13... Nc5 {[%clk 0:02:15.9]} 14. g5 {[%clk
0:02:53.3]} 14... Nfd7 {[%clk 0:02:14.1]} 15. f4 {[%clk 0:02:53.1]} 15... Rac8
{[%clk 0:01:57.4]} 16. Qh5 {[%clk 0:02:44]} 16... Rfe8 {[%clk 0:01:54]} 17. f5
{[%clk 0:02:42.9]} 17... e5 {[%clk 0:01:34.8]} 18. Nde2 {[%clk 0:02:37.1]} 18...
Nf8 {[%clk 0:00:49.4]} 19. Ng3 {[%clk 0:02:35.6]} 19... Kh8 {[%clk 0:00:46.5]}
20. Qxf7 {[%clk 0:02:33.3]} 20... d5 {[%clk 0:00:28.9]} 21. f6 {[%clk
0:01:50.3]} 21... Nce6 {[%clk 0:00:21.2]} 22. fxe7 {[%clk 0:01:46]} 22... Rxe7
{[%clk 0:00:10.4]} 23. Qf2 {[%clk 0:01:46]} 23... d4 {[%clk 0:00:10.1]} 24. Nd5
{[%clk 0:01:45.7]} 24... Bxd5 {[%clk 0:00:06.2]} 25. exd5 {[%clk 0:01:46.6]}
25... Nc5 {[%clk 0:00:06.5]} 26. d6 {[%clk 0:01:42.2]} 26... Qxd6 {[%clk
0:00:04.7]} 27. Nf5 {[%clk 0:01:42.8]} 1-0

[Event "*** SCC Grand Prix: Titled Tuesday Blitz"]
[Site "Chess.com"]
[Date "2020.10.13"]
[Round "6"]
[White "DenLaz"]
[Black "FloMasterAAK"]
[Result "1-0"]
[WhiteElo "2806"]
[BlackElo "2543"]
[TimeControl "180+1"]
[EndTime "11:05:33 PDT"]
[Termination "DenLaz won on time"]

1. d4 {[%clk 0:03:00.9]} 1... Nf6 {[%clk 0:02:59.3]} 2. Nf3 {[%clk 0:03:01.1]}
2... d5 {[%clk 0:02:57.3]} 3. c4 {[%clk 0:03:01.1]} 3... dxc4 {[%clk 0:02:56.8]}
4. e3 {[%clk 0:03:00.3]} 4... Bg4 {[%clk 0:02:56.3]} 5. Bxc4 {[%clk 0:03:00.4]}
5... e6 {[%clk 0:02:56.3]} 6. h3 {[%clk 0:02:59.5]} 6... Bh5 {[%clk 0:02:55.1]}
7. Nc3 {[%clk 0:03:00.2]} 7... a6 {[%clk 0:02:53.1]} 8. g4 {[%clk 0:02:59.1]}
8... Bg6 {[%clk 0:02:52.6]} 9. Ne5 {[%clk 0:02:59.8]} 9... Nbd7 {[%clk
0:02:44.5]} 10. Nxg6 {[%clk 0:02:59.9]} 10... hxg6 {[%clk 0:02:44.1]} 11. Bf1
{[%clk 0:03:00.4]} 11... c6 {[%clk 0:02:25.4]} 12. Bg2 {[%clk 0:03:00.5]} 12...
Bd6 {[%clk 0:02:20.8]} 13. O-O {[%clk 0:02:59.2]} 13... e5 {[%clk 0:01:57.1]}
14. dxe5 {[%clk 0:02:55.5]} 14... Bxe5 {[%clk 0:01:58]} 15. f4 {[%clk
0:02:50.4]} 15... Bc7 {[%clk 0:01:56.1]} 16. e4 {[%clk 0:02:47.6]} 16... Nc5
{[%clk 0:01:46.7]} 17. e5 {[%clk 0:02:40.6]} 17... Nh7 {[%clk 0:01:40.5]} 18.
Be3 {[%clk 0:02:38.5]} 18... Ne6 {[%clk 0:01:35.5]} 19. Ne4 {[%clk 0:02:36.2]}
19... O-O {[%clk 0:01:31.2]} 20. f5 {[%clk 0:02:21.5]} 20... Neg5 {[%clk
0:01:30.5]} 21. Qxd8 {[%clk 0:02:20.2]} 21... Bxd8 {[%clk 0:01:29.7]} 22. Nd6
{[%clk 0:02:19]} 22... f6 {[%clk 0:00:23.2]} 23. fxg6 {[%clk 0:02:09.9]} 23...
fxe5 {[%clk 0:00:19.7]} 24. gxh7+ {[%clk 0:02:10.1]} 24... Nxh7 {[%clk
0:00:19.7]} 25. Nxb7 {[%clk 0:02:08.6]} 25... Bf6 {[%clk 0:00:14.6]} 26. Bxc6
{[%clk 0:02:07.8]} 26... Rfc8 {[%clk 0:00:12.6]} 27. Bd5+ {[%clk 0:02:05.3]}
27... Kh8 {[%clk 0:00:10.6]} 28. Nd6 {[%clk 0:02:06.2]} 28... Rd8 {[%clk
0:00:09.9]} 29. Nf7+ {[%clk 0:02:06.2]} 29... Kg8 {[%clk 0:00:05.9]} 30. Nxd8+
{[%clk 0:02:07.1]} 30... Kf8 {[%clk 0:00:04.9]} 31. Bxa8 {[%clk 0:02:05.4]}
31... Ke7 {[%clk 0:00:01.5]} 32. Nc6+ {[%clk 0:02:04]} 32... Kd6 {[%clk
0:00:01.1]} 33. Rad1+ {[%clk 0:02:04.9]} 33... Kc7 {[%clk 0:00:00.6]} 34. a4
{[%clk 0:02:04]} 34... Ng5 {[%clk 0:00:01.5]} 35. a5 {[%clk 0:02:04.4]} 35...
Nxh3+ {[%clk 0:00:01.1]} 36. Kg2 {[%clk 0:02:04.4]} 36... Ng5 {[%clk 0:00:02]}
37. Bb6+ {[%clk 0:02:04.1]} 1-0

[Event "*** SCC Grand Prix: Titled Tuesday Blitz"]
[Site "Chess.com"]
[Date "2020.10.13"]
[Round "6"]
[White "Sashadav97"]
[Black "ASVZ"]
[Result "1-0"]
[WhiteElo "2604"]
[BlackElo "2446"]
[TimeControl "180+1"]
[EndTime "11:05:33 PDT"]
[Termination "Sashadav97 won by resignation"]

1. d4 {[%clk 0:03:00.9]} 1... e6 {[%clk 0:02:59.3]} 2. c4 {[%clk 0:02:52.9]}
2... b6 {[%clk 0:02:59.1]} 3. e4 {[%clk 0:02:45.8]} 3... Bb7 {[%clk 0:02:59.3]}
4. Bd3 {[%clk 0:02:44.6]} 4... f5 {[%clk 0:02:59.4]} 5. exf5 {[%clk 0:02:42.5]}
5... Bxg2 {[%clk 0:03:00.3]} 6. Qh5+ {[%clk 0:02:41.9]} 6... g6 {[%clk
0:03:00.4]} 7. fxg6 {[%clk 0:02:42.1]} 7... Bg7 {[%clk 0:03:01]} 8. gxh7+ {[%clk
0:02:28.6]} 8... Kf8 {[%clk 0:03:01.4]} 9. Bg5 {[%clk 0:02:20.9]} 9... Nf6
{[%clk 0:03:01.1]} 10. Qh4 {[%clk 0:02:20.9]} 10... Bxh1 {[%clk 0:03:01.6]} 11.
Ne2 {[%clk 0:02:19.5]} 11... c5 {[%clk 0:03:01.7]} 12. Nf4 {[%clk 0:02:12.9]}
12... Nc6 {[%clk 0:03:02.2]} 13. Nc3 {[%clk 0:02:08.3]} 13... Nxd4 {[%clk
0:02:56.3]} 14. Ng6+ {[%clk 0:01:57]} 14... Kf7 {[%clk 0:02:56.3]} 15. Nxh8+
{[%clk 0:01:56.5]} 15... Qxh8 {[%clk 0:02:52.1]} 16. O-O-O {[%clk 0:01:51.7]}
16... Bf3 {[%clk 0:02:42.4]} 17. Rg1 {[%clk 0:01:43.1]} 17... Nf5 {[%clk
0:02:37.3]} 18. Qf4 {[%clk 0:01:32]} 18... Bc6 {[%clk 0:02:30.9]} 19. Bxf5
{[%clk 0:01:18.1]} 19... exf5 {[%clk 0:02:31]} 20. Bxf6 {[%clk 0:01:15.7]} 20...
Bxf6 {[%clk 0:02:26.4]} 21. Qxf5 {[%clk 0:01:15.3]} 21... Re8 {[%clk 0:02:12.9]}
22. Nd5 {[%clk 0:01:03.8]} 22... Re6 {[%clk 0:02:04.9]} 23. Rg8 {[%clk 0:00:56]}
23... Bxd5 {[%clk 0:01:34.9]} 24. Rxh8 {[%clk 0:00:39.6]} 24... Be4 {[%clk
0:01:35.4]} 25. Qh5+ {[%clk 0:00:35.5]} 25... Bg6 {[%clk 0:01:35.3]} 26. Rf8+
{[%clk 0:00:35.5]} 26... Kxf8 {[%clk 0:01:35.8]} 27. Qxg6 {[%clk 0:00:35.4]}
27... Bxb2+ {[%clk 0:01:36]} 28. Kxb2 {[%clk 0:00:35]} 28... Rxg6 {[%clk
0:01:36.9]} 29. h8=Q+ {[%clk 0:00:35.3]} 29... Kf7 {[%clk 0:01:37.8]} 30. Qh7+
{[%clk 0:00:34.4]} 30... Rg7 {[%clk 0:01:38.2]} 31. Qf5+ {[%clk 0:00:34.5]}
31... Ke7 {[%clk 0:01:38.8]} 32. h4 {[%clk 0:00:34.4]} 32... Rf7 {[%clk
0:01:39.5]} 33. Qe5+ {[%clk 0:00:34.6]} 33... Kf8 {[%clk 0:01:38.8]} 34. f4
{[%clk 0:00:34.9]} 34... Re7 {[%clk 0:01:39]} 35. Qf6+ {[%clk 0:00:31.4]} 35...
Rf7 {[%clk 0:01:39.1]} 36. Qh8+ {[%clk 0:00:31.5]} 36... Ke7 {[%clk 0:01:39.8]}
37. h5 {[%clk 0:00:32.1]} 37... d6 {[%clk 0:01:39.1]} 38. h6 {[%clk 0:00:28.6]}
38... Rxf4 {[%clk 0:01:38.7]} 39. h7 {[%clk 0:00:28.5]} 39... Rf2+ {[%clk
0:01:38.4]} 40. Kc1 {[%clk 0:00:28.6]} 40... Rh2 {[%clk 0:01:39.3]} 41. Qg7+
{[%clk 0:00:28.1]} 41... Ke6 {[%clk 0:01:39.4]} 42. h8=Q {[%clk 0:00:28.6]} 1-0

[Event "*** SCC Grand Prix: Titled Tuesday Blitz"]
[Site "Chess.com"]
[Date "2020.10.13"]
[Round "6"]
[White "Reader777"]
[Black "exoticprincess"]
[Result "0-1"]
[WhiteElo "2697"]
[BlackElo "2876"]
[TimeControl "180+1"]
[EndTime "11:05:34 PDT"]
[Termination "exoticprincess won by resignation"]

1. d4 {[%clk 0:03:00.9]} 1... d5 {[%clk 0:02:59.2]} 2. c4 {[%clk 0:03:01]} 2...
c6 {[%clk 0:02:59.7]} 3. Nf3 {[%clk 0:03:00.7]} 3... Nf6 {[%clk 0:02:59.6]} 4.
Nc3 {[%clk 0:03:00.6]} 4... dxc4 {[%clk 0:02:59.6]} 5. a4 {[%clk 0:03:00.4]}
5... a5 {[%clk 0:02:59.8]} 6. e3 {[%clk 0:02:59.3]} 6... Bg4 {[%clk 0:02:59.3]}
7. Bxc4 {[%clk 0:02:57.5]} 7... e6 {[%clk 0:02:58.8]} 8. O-O {[%clk 0:02:57]}
8... Nbd7 {[%clk 0:02:56.6]} 9. h3 {[%clk 0:02:57]} 9... Bh5 {[%clk 0:02:56.5]}
10. Qe2 {[%clk 0:02:55.1]} 10... Bb4 {[%clk 0:02:55.4]} 11. Bd2 {[%clk
0:02:54.4]} 11... O-O {[%clk 0:02:54.7]} 12. e4 {[%clk 0:02:51.8]} 12... Nb6
{[%clk 0:02:54.3]} 13. g4 {[%clk 0:02:38.8]} 13... Nxc4 {[%clk 0:02:52.5]} 14.
Qxc4 {[%clk 0:02:36.4]} 14... Bg6 {[%clk 0:02:52.6]} 15. e5 {[%clk 0:02:15.6]}
15... Nd5 {[%clk 0:02:51.3]} 16. Nxd5 {[%clk 0:02:14.3]} 16... exd5 {[%clk
0:02:49]} 17. Qe2 {[%clk 0:02:13.2]} 17... Qb6 {[%clk 0:02:34.4]} 18. Be3 {[%clk
0:02:03.8]} 18... Qa6 {[%clk 0:02:30.5]} 19. Qxa6 {[%clk 0:01:57.8]} 19... Rxa6
{[%clk 0:02:30.3]} 20. Rfc1 {[%clk 0:01:38.6]} 20... Rb6 {[%clk 0:02:28.6]} 21.
b3 {[%clk 0:01:33.8]} 21... f5 {[%clk 0:02:23]} 22. g5 {[%clk 0:01:23.8]} 22...
f4 {[%clk 0:02:14.6]} 23. Bd2 {[%clk 0:01:23.2]} 23... Bh5 {[%clk 0:02:13.4]}
24. Bxb4 {[%clk 0:01:22.5]} 24... Rxb4 {[%clk 0:02:13]} 25. Kg2 {[%clk
0:01:10.6]} 25... Bxf3+ {[%clk 0:02:03.1]} 26. Kxf3 {[%clk 0:01:09.7]} 26...
Rxd4 {[%clk 0:02:04]} 27. Rd1 {[%clk 0:01:05.1]} 27... Rb4 {[%clk 0:02:02.1]}
28. Rd3 {[%clk 0:01:04]} 28... Kf7 {[%clk 0:02:02.3]} 29. Re1 {[%clk 0:00:39.4]}
29... Ke6 {[%clk 0:02:01.3]} 30. h4 {[%clk 0:00:30.4]} 30... Rf5 {[%clk
0:02:01]} 31. Kg4 {[%clk 0:00:24.1]} 31... Rxe5 {[%clk 0:01:59.1]} 32. Red1
{[%clk 0:00:10.6]} 32... Re2 {[%clk 0:01:41.3]} 0-1